{"text_format":"3","workbook":"xlsx","n_sheets":13,"sheets":["Gennaio","Febbraio","Marzo","Aprile","Maggio","Giugno","Luglio","Agosto","Settembre","Ottobre","Novembre","Dicembre","Riepilogo da inizio anno"],"not_rendered":{"charts":1,"defined_names":13},"read":"whole","date_system":"1900"}

{"sheet":"Gennaio","index":0,"n_rows":9,"n_cols":14,"rows_kept":9,"merged":[[3,0,4,0],[6,0,7,0]]}
["GENNAIO"]
["Vendite online",null,"ID\nasta","Descrizione\narticolo","Prezzo di acquisto","Prezzo di vendita","Tariffe online","Tariffe \nPayPal","Tariffe \ncarta di credito","Spese\nspedizione","Tariffe spedizione","Profitti/Perdite vendite","Profitti/Perdite spedizioni","Totale\nprofitti/perdite"]
["Anno",null,"TS001","Articolo 1",{"v":5,"d":"€ 5.00"},{"v":4,"d":"€ 4.00"},{"v":2,"d":"€ 2.00"},{"v":1.5,"d":"€ 1.50"},{"v":0,"d":"€ 0.00"},{"v":4,"d":"€ 4.00"},{"v":2,"d":"€ 2.00"},{"$f":"IFERROR(VenditeGennaio[Prezzo di vendita]-(VenditeGennaio[Prezzo di acquisto]+VenditeGennaio[Tariffe online]+VenditeGennaio[Tariffe \nPayPal]+VenditeGennaio[Tariffe \ncarta di credito]),\"\")","v":{"v":-4.5,"d":"(€ 4.50)"}},{"$f":"VenditeGennaio[Spese\nspedizione]-VenditeGennaio[Tariffe spedizione]","v":{"v":2,"d":"€ 2.00"}},{"$f":"VenditeGennaio[Profitti/Perdite vendite]+VenditeGennaio[Profitti/Perdite spedizioni]","v":{"v":-2.5,"d":"(€ 2.50)"}}]
[2012,null,"TP004","Articolo 2",{"v":2,"d":"€ 2.00"},{"v":30,"d":"€ 30.00"},{"v":0.5,"d":"€ 0.50"},{"v":0.5,"d":"€ 0.50"},null,{"v":4,"d":"€ 4.00"},{"v":5.5,"d":"€ 5.50"},{"$f":"IFERROR(VenditeGennaio[Prezzo di vendita]-(VenditeGennaio[Prezzo di acquisto]+VenditeGennaio[Tariffe online]+VenditeGennaio[Tariffe \nPayPal]+VenditeGennaio[Tariffe \ncarta di credito]),\"\")","v":{"v":27,"d":"€ 27.00"}},{"$f":"VenditeGennaio[Spese\nspedizione]-VenditeGennaio[Tariffe spedizione]","v":{"v":-1.5,"d":"(€ 1.50)"}},{"$f":"VenditeGennaio[Profitti/Perdite vendite]+VenditeGennaio[Profitti/Perdite spedizioni]","v":{"v":25.5,"d":"€ 25.50"}}]
[null,null,"RS99","Articolo 3",{"v":17,"d":"€ 17.00"},{"v":23,"d":"€ 23.00"},{"v":2,"d":"€ 2.00"},null,{"v":2,"d":"€ 2.00"},{"v":3,"d":"€ 3.00"},{"v":2,"d":"€ 2.00"},{"$f":"IFERROR(VenditeGennaio[Prezzo di vendita]-(VenditeGennaio[Prezzo di acquisto]+VenditeGennaio[Tariffe online]+VenditeGennaio[Tariffe \nPayPal]+VenditeGennaio[Tariffe \ncarta di credito]),\"\")","v":{"v":2,"d":"€ 2.00"}},{"$f":"VenditeGennaio[Spese\nspedizione]-VenditeGennaio[Tariffe spedizione]","v":{"v":1,"d":"€ 1.00"}},{"$f":"VenditeGennaio[Profitti/Perdite vendite]+VenditeGennaio[Profitti/Perdite spedizioni]","v":{"v":3,"d":"€ 3.00"}}]
["Totale profitti/perdite",null,"ST001","Articolo 4",{"v":120,"d":"€ 120.00"},{"v":180,"d":"€ 180.00"},{"v":2,"d":"€ 2.00"},{"v":1.5,"d":"€ 1.50"},null,{"v":3,"d":"€ 3.00"},{"v":2,"d":"€ 2.00"},{"$f":"IFERROR(VenditeGennaio[Prezzo di vendita]-(VenditeGennaio[Prezzo di acquisto]+VenditeGennaio[Tariffe online]+VenditeGennaio[Tariffe \nPayPal]+VenditeGennaio[Tariffe \ncarta di credito]),\"\")","v":{"v":56.5,"d":"€ 56.50"}},{"$f":"VenditeGennaio[Spese\nspedizione]-VenditeGennaio[Tariffe spedizione]","v":{"v":1,"d":"€ 1.00"}},{"$f":"VenditeGennaio[Profitti/Perdite vendite]+VenditeGennaio[Profitti/Perdite spedizioni]","v":{"v":57.5,"d":"€ 57.50"}}]
[{"$f":"VenditeGennaio[[#Totals],[Totale\nprofitti/perdite]]","v":{"v":89,"d":"€ 89.00"}},null,"ST001","Articolo 5",{"v":10,"d":"€ 10.00"},{"v":12,"d":"€ 12.00"},{"v":2,"d":"€ 2.00"},{"v":1.5,"d":"€ 1.50"},null,{"v":14,"d":"€ 14.00"},{"v":7,"d":"€ 7.00"},{"$f":"IFERROR(VenditeGennaio[Prezzo di vendita]-(VenditeGennaio[Prezzo di acquisto]+VenditeGennaio[Tariffe online]+VenditeGennaio[Tariffe \nPayPal]+VenditeGennaio[Tariffe \ncarta di credito]),\"\")","v":{"v":-1.5,"d":"(€ 1.50)"}},{"$f":"VenditeGennaio[Spese\nspedizione]-VenditeGennaio[Tariffe spedizione]","v":{"v":7,"d":"€ 7.00"}},{"$f":"VenditeGennaio[Profitti/Perdite vendite]+VenditeGennaio[Profitti/Perdite spedizioni]","v":{"v":5.5,"d":"€ 5.50"}}]
[null,null," Totale",{"$f":"\"Items Sold: \"&SUBTOTAL(103,VenditeGennaio[Descrizione\narticolo])","v":"Items Sold: 5"},{"$f":"SUBTOTAL(109,VenditeGennaio[Prezzo di acquisto])","v":{"v":154,"d":"€ 154.00"}},{"$f":"SUBTOTAL(109,VenditeGennaio[Prezzo di vendita])","v":{"v":249,"d":"€ 249.00"}},{"$f":"SUBTOTAL(109,VenditeGennaio[Tariffe online])","v":{"v":8.5,"d":"€ 8.50"}},{"$f":"SUBTOTAL(109,VenditeGennaio[Tariffe \nPayPal])","v":{"v":5,"d":"€ 5.00"}},{"$f":"SUBTOTAL(109,VenditeGennaio[Tariffe \ncarta di credito])","v":{"v":2,"d":"€ 2.00"}},{"$f":"SUBTOTAL(109,VenditeGennaio[Spese\nspedizione])","v":{"v":28,"d":"€ 28.00"}},{"$f":"SUBTOTAL(109,VenditeGennaio[Tariffe spedizione])","v":{"v":18.5,"d":"€ 18.50"}},{"$f":"SUBTOTAL(109,VenditeGennaio[Profitti/Perdite vendite])","v":{"v":79.5,"d":"€ 79.50"}},{"$f":"SUBTOTAL(109,VenditeGennaio[Profitti/Perdite spedizioni])","v":{"v":9.5,"d":"€ 9.50"}},{"$f":"SUBTOTAL(109,VenditeGennaio[Totale\nprofitti/perdite])","v":{"v":89,"d":"€ 89.00"}}]
["Tendenza profitti/perdite"]

{"sheet":"Febbraio","index":1,"n_rows":9,"n_cols":14,"rows_kept":9,"merged":[[3,0,4,0],[6,0,7,0]]}
["FEBBRAIO"]
["Vendite online",null,"ID\nasta","Descrizione\narticolo","Prezzo di acquisto","Prezzo di vendita","Tariffe online","Tariffe \nPayPal","Tariffe \ncarta di credito","Spese\nspedizione","Tariffe spedizione","Profitti/Perdite vendite","Profitti/Perdite spedizioni","Totale\nprofitti/perdite"]
["Anno",null,"TS020","Articolo 1",{"v":10,"d":"€ 10.00"},{"v":175,"d":"€ 175.00"},{"v":3,"d":"€ 3.00"},{"v":1.5,"d":"€ 1.50"},{"v":0,"d":"€ 0.00"},{"v":7,"d":"€ 7.00"},{"v":5,"d":"€ 5.00"},{"$f":"IFERROR(VenditeFebbraio[Prezzo di vendita]-(VenditeFebbraio[Prezzo di acquisto]+VenditeFebbraio[Tariffe online]+VenditeFebbraio[Tariffe \nPayPal]+VenditeFebbraio[Tariffe \ncarta di credito]),\"\")","v":{"v":160.5,"d":"€ 160.50"}},{"$f":"VenditeFebbraio[Spese\nspedizione]-VenditeFebbraio[Tariffe spedizione]","v":{"v":2,"d":"€ 2.00"}},{"$f":"VenditeFebbraio[Profitti/Perdite vendite]+VenditeFebbraio[Profitti/Perdite spedizioni]","v":{"v":162.5,"d":"€ 162.50"}}]
[{"$f":"AnnoVendite","v":2012},null,"TS021","Articolo 2",{"v":32,"d":"€ 32.00"},{"v":100,"d":"€ 100.00"},{"v":3,"d":"€ 3.00"},null,{"v":3.2,"d":"€ 3.20"},{"v":20,"d":"€ 20.00"},{"v":13,"d":"€ 13.00"},{"$f":"IFERROR(VenditeFebbraio[Prezzo di vendita]-(VenditeFebbraio[Prezzo di acquisto]+VenditeFebbraio[Tariffe online]+VenditeFebbraio[Tariffe \nPayPal]+VenditeFebbraio[Tariffe \ncarta di credito]),\"\")","v":{"v":61.8,"d":"€ 61.80"}},{"$f":"VenditeFebbraio[Spese\nspedizione]-VenditeFebbraio[Tariffe spedizione]","v":{"v":7,"d":"€ 7.00"}},{"$f":"VenditeFebbraio[Profitti/Perdite vendite]+VenditeFebbraio[Profitti/Perdite spedizioni]","v":{"v":68.8,"d":"€ 68.80"}}]
[null,null,"TS022","Articolo 3",{"v":3,"d":"€ 3.00"},{"v":7,"d":"€ 7.00"},{"v":2,"d":"€ 2.00"},null,{"v":2,"d":"€ 2.00"},{"v":0.5,"d":"€ 0.50"},{"v":1.2,"d":"€ 1.20"},{"$f":"IFERROR(VenditeFebbraio[Prezzo di vendita]-(VenditeFebbraio[Prezzo di acquisto]+VenditeFebbraio[Tariffe online]+VenditeFebbraio[Tariffe \nPayPal]+VenditeFebbraio[Tariffe \ncarta di credito]),\"\")","v":{"v":0,"d":"€ 0.00"}},{"$f":"VenditeFebbraio[Spese\nspedizione]-VenditeFebbraio[Tariffe spedizione]","v":{"v":-0.7,"d":"(€ 0.70)"}},{"$f":"VenditeFebbraio[Profitti/Perdite vendite]+VenditeFebbraio[Profitti/Perdite spedizioni]","v":{"v":-0.7,"d":"(€ 0.70)"}}]
["Totale profitti/perdite",null,"TS023","Articolo 4",{"v":22,"d":"€ 22.00"},{"v":18,"d":"€ 18.00"},{"v":3,"d":"€ 3.00"},{"v":1.5,"d":"€ 1.50"},null,{"v":7,"d":"€ 7.00"},{"v":10,"d":"€ 10.00"},{"$f":"IFERROR(VenditeFebbraio[Prezzo di vendita]-(VenditeFebbraio[Prezzo di acquisto]+VenditeFebbraio[Tariffe online]+VenditeFebbraio[Tariffe \nPayPal]+VenditeFebbraio[Tariffe \ncarta di credito]),\"\")","v":{"v":-8.5,"d":"(€ 8.50)"}},{"$f":"VenditeFebbraio[Spese\nspedizione]-VenditeFebbraio[Tariffe spedizione]","v":{"v":-3,"d":"(€ 3.00)"}},{"$f":"VenditeFebbraio[Profitti/Perdite vendite]+VenditeFebbraio[Profitti/Perdite spedizioni]","v":{"v":-11.5,"d":"(€ 11.50)"}}]
[{"$f":"VenditeFebbraio[[#Totals],[Totale\nprofitti/perdite]]","v":{"v":224.60000000000002,"d":"€ 224.60"}},null,"TS024","Articolo 5",{"v":10,"d":"€ 10.00"},{"v":12,"d":"€ 12.00"},{"v":2,"d":"€ 2.00"},{"v":1.5,"d":"€ 1.50"},null,{"v":14,"d":"€ 14.00"},{"v":7,"d":"€ 7.00"},{"$f":"IFERROR(VenditeFebbraio[Prezzo di vendita]-(VenditeFebbraio[Prezzo di acquisto]+VenditeFebbraio[Tariffe online]+VenditeFebbraio[Tariffe \nPayPal]+VenditeFebbraio[Tariffe \ncarta di credito]),\"\")","v":{"v":-1.5,"d":"(€ 1.50)"}},{"$f":"VenditeFebbraio[Spese\nspedizione]-VenditeFebbraio[Tariffe spedizione]","v":{"v":7,"d":"€ 7.00"}},{"$f":"VenditeFebbraio[Profitti/Perdite vendite]+VenditeFebbraio[Profitti/Perdite spedizioni]","v":{"v":5.5,"d":"€ 5.50"}}]
[null,null," Totale",{"$f":"\"Items Sold: \"&SUBTOTAL(103,VenditeFebbraio[Descrizione\narticolo])","v":"Items Sold: 5"},{"$f":"SUBTOTAL(109,VenditeFebbraio[Prezzo di acquisto])","v":{"v":77,"d":"€ 77.00"}},{"$f":"SUBTOTAL(109,VenditeFebbraio[Prezzo di vendita])","v":{"v":312,"d":"€ 312.00"}},{"$f":"SUBTOTAL(109,VenditeFebbraio[Tariffe online])","v":{"v":13,"d":"€ 13.00"}},{"$f":"SUBTOTAL(109,VenditeFebbraio[Tariffe \nPayPal])","v":{"v":4.5,"d":"€ 4.50"}},{"$f":"SUBTOTAL(109,VenditeFebbraio[Tariffe \ncarta di credito])","v":{"v":5.2,"d":"€ 5.20"}},{"$f":"SUBTOTAL(109,VenditeFebbraio[Spese\nspedizione])","v":{"v":48.5,"d":"€ 48.50"}},{"$f":"SUBTOTAL(109,VenditeFebbraio[Tariffe spedizione])","v":{"v":36.2,"d":"€ 36.20"}},{"$f":"SUBTOTAL(109,VenditeFebbraio[Profitti/Perdite vendite])","v":{"v":212.3,"d":"€ 212.30"}},{"$f":"SUBTOTAL(109,VenditeFebbraio[Profitti/Perdite spedizioni])","v":{"v":12.3,"d":"€ 12.30"}},{"$f":"SUBTOTAL(109,VenditeFebbraio[Totale\nprofitti/perdite])","v":{"v":224.60000000000002,"d":"€ 224.60"}}]
["Tendenza profitti/perdite"]

{"sheet":"Marzo","index":2,"n_rows":9,"n_cols":14,"rows_kept":9,"merged":[[3,0,4,0],[6,0,7,0]]}
["MARZO"]
["Vendite online",null,"ID\nasta","Descrizione\narticolo","Prezzo di acquisto","Prezzo di vendita","Tariffe online","Tariffe \nPayPal","Tariffe \ncarta di credito","Spese\nspedizione","Tariffe spedizione","Profitti/Perdite vendite","Profitti/Perdite spedizioni","Totale\nprofitti/perdite"]
["Anno",{"$nulls":10},{"$f":"IFERROR(VenditeMarzo[Prezzo di vendita]-(VenditeMarzo[Prezzo di acquisto]+VenditeMarzo[Tariffe online]+VenditeMarzo[Tariffe \nPayPal]+VenditeMarzo[Tariffe \ncarta di credito]),\"\")","v":{"v":0,"d":"€ 0.00"}},{"$f":"VenditeMarzo[Spese\nspedizione]-VenditeMarzo[Tariffe spedizione]","v":{"v":0,"d":"€ 0.00"}},{"$f":"VenditeMarzo[Profitti/Perdite vendite]+VenditeMarzo[Profitti/Perdite spedizioni]","v":{"v":0,"d":"€ 0.00"}}]
[{"$f":"AnnoVendite","v":2012},{"$nulls":10},{"$f":"IFERROR(VenditeMarzo[Prezzo di vendita]-(VenditeMarzo[Prezzo di acquisto]+VenditeMarzo[Tariffe online]+VenditeMarzo[Tariffe \nPayPal]+VenditeMarzo[Tariffe \ncarta di credito]),\"\")","v":{"v":0,"d":"€ 0.00"}},{"$f":"VenditeMarzo[Spese\nspedizione]-VenditeMarzo[Tariffe spedizione]","v":{"v":0,"d":"€ 0.00"}},{"$f":"VenditeMarzo[Profitti/Perdite vendite]+VenditeMarzo[Profitti/Perdite spedizioni]","v":{"v":0,"d":"€ 0.00"}}]
[{"$nulls":11},{"$f":"IFERROR(VenditeMarzo[Prezzo di vendita]-(VenditeMarzo[Prezzo di acquisto]+VenditeMarzo[Tariffe online]+VenditeMarzo[Tariffe \nPayPal]+VenditeMarzo[Tariffe \ncarta di credito]),\"\")","v":{"v":0,"d":"€ 0.00"}},{"$f":"VenditeMarzo[Spese\nspedizione]-VenditeMarzo[Tariffe spedizione]","v":{"v":0,"d":"€ 0.00"}},{"$f":"VenditeMarzo[Profitti/Perdite vendite]+VenditeMarzo[Profitti/Perdite spedizioni]","v":{"v":0,"d":"€ 0.00"}}]
["Totale profitti/perdite",{"$nulls":10},{"$f":"IFERROR(VenditeMarzo[Prezzo di vendita]-(VenditeMarzo[Prezzo di acquisto]+VenditeMarzo[Tariffe online]+VenditeMarzo[Tariffe \nPayPal]+VenditeMarzo[Tariffe \ncarta di credito]),\"\")","v":{"v":0,"d":"€ 0.00"}},{"$f":"VenditeMarzo[Spese\nspedizione]-VenditeMarzo[Tariffe spedizione]","v":{"v":0,"d":"€ 0.00"}},{"$f":"VenditeMarzo[Profitti/Perdite vendite]+VenditeMarzo[Profitti/Perdite spedizioni]","v":{"v":0,"d":"€ 0.00"}}]
[{"$f":"VenditeMarzo[[#Totals],[Totale\nprofitti/perdite]]","v":{"v":0,"d":"€ 0.00"}},{"$nulls":10},{"$f":"IFERROR(VenditeMarzo[Prezzo di vendita]-(VenditeMarzo[Prezzo di acquisto]+VenditeMarzo[Tariffe online]+VenditeMarzo[Tariffe \nPayPal]+VenditeMarzo[Tariffe \ncarta di credito]),\"\")","v":{"v":0,"d":"€ 0.00"}},{"$f":"VenditeMarzo[Spese\nspedizione]-VenditeMarzo[Tariffe spedizione]","v":{"v":0,"d":"€ 0.00"}},{"$f":"VenditeMarzo[Profitti/Perdite vendite]+VenditeMarzo[Profitti/Perdite spedizioni]","v":{"v":0,"d":"€ 0.00"}}]
[null,null," Totale",{"$f":"\"Items Sold: \"&SUBTOTAL(103,VenditeMarzo[Descrizione\narticolo])","v":"Items Sold: 0"},{"$f":"SUBTOTAL(109,VenditeMarzo[Prezzo di acquisto])","v":{"v":0,"d":"€ 0.00"}},{"$f":"SUBTOTAL(109,VenditeMarzo[Prezzo di vendita])","v":{"v":0,"d":"€ 0.00"}},{"$f":"SUBTOTAL(109,VenditeMarzo[Tariffe online])","v":{"v":0,"d":"€ 0.00"}},{"$f":"SUBTOTAL(109,VenditeMarzo[Tariffe \nPayPal])","v":{"v":0,"d":"€ 0.00"}},{"$f":"SUBTOTAL(109,VenditeMarzo[Tariffe \ncarta di credito])","v":{"v":0,"d":"€ 0.00"}},{"$f":"SUBTOTAL(109,VenditeMarzo[Spese\nspedizione])","v":{"v":0,"d":"€ 0.00"}},{"$f":"SUBTOTAL(109,VenditeMarzo[Tariffe spedizione])","v":{"v":0,"d":"€ 0.00"}},{"$f":"SUBTOTAL(109,VenditeMarzo[Profitti/Perdite vendite])","v":{"v":0,"d":"€ 0.00"}},{"$f":"SUBTOTAL(109,VenditeMarzo[Profitti/Perdite spedizioni])","v":{"v":0,"d":"€ 0.00"}},{"$f":"SUBTOTAL(109,VenditeMarzo[Totale\nprofitti/perdite])","v":{"v":0,"d":"€ 0.00"}}]
["Tendenza profitti/perdite"]

{"sheet":"Aprile","index":3,"n_rows":9,"n_cols":14,"rows_kept":9,"merged":[[3,0,4,0],[6,0,7,0]]}
["APRILE"]
["Vendite online",null,"ID\nasta","Descrizione\narticolo","Prezzo di acquisto","Prezzo di vendita","Tariffe online","Tariffe \nPayPal","Tariffe \ncarta di credito","Spese\nspedizione","Tariffe spedizione","Profitti/Perdite vendite","Profitti/Perdite spedizioni","Totale\nprofitti/perdite"]
["Anno",{"$nulls":11},{"$f":"VenditeAprile[Spese\nspedizione]-VenditeAprile[Tariffe spedizione]","v":{"v":0,"d":"€ 0.00"}},{"$f":"VenditeAprile[Profitti/Perdite vendite]+VenditeAprile[Profitti/Perdite spedizioni]","v":{"v":0,"d":"€ 0.00"}}]
[{"$f":"AnnoVendite","v":2012},{"$nulls":11},{"$f":"VenditeAprile[Spese\nspedizione]-VenditeAprile[Tariffe spedizione]","v":{"v":0,"d":"€ 0.00"}},{"$f":"VenditeAprile[Profitti/Perdite vendite]+VenditeAprile[Profitti/Perdite spedizioni]","v":{"v":0,"d":"€ 0.00"}}]
[{"$nulls":12},{"$f":"VenditeAprile[Spese\nspedizione]-VenditeAprile[Tariffe spedizione]","v":{"v":0,"d":"€ 0.00"}},{"$f":"VenditeAprile[Profitti/Perdite vendite]+VenditeAprile[Profitti/Perdite spedizioni]","v":{"v":0,"d":"€ 0.00"}}]
["Totale profitti/perdite",{"$nulls":11},{"$f":"VenditeAprile[Spese\nspedizione]-VenditeAprile[Tariffe spedizione]","v":{"v":0,"d":"€ 0.00"}},{"$f":"VenditeAprile[Profitti/Perdite vendite]+VenditeAprile[Profitti/Perdite spedizioni]","v":{"v":0,"d":"€ 0.00"}}]
[{"$f":"VenditeAprile[[#Totals],[Totale\nprofitti/perdite]]","v":{"v":0,"d":"€ 0.00"}},{"$nulls":11},{"$f":"VenditeAprile[Spese\nspedizione]-VenditeAprile[Tariffe spedizione]","v":{"v":0,"d":"€ 0.00"}},{"$f":"VenditeAprile[Profitti/Perdite vendite]+VenditeAprile[Profitti/Perdite spedizioni]","v":{"v":0,"d":"€ 0.00"}}]
[null,null," Totale",{"$f":"\"Items Sold: \"&SUBTOTAL(103,VenditeAprile[Descrizione\narticolo])","v":"Items Sold: 0"},{"$f":"SUBTOTAL(109,VenditeAprile[Prezzo di acquisto])","v":{"v":0,"d":"€ 0.00"}},{"$f":"SUBTOTAL(109,VenditeAprile[Prezzo di vendita])","v":{"v":0,"d":"€ 0.00"}},{"$f":"SUBTOTAL(109,VenditeAprile[Tariffe online])","v":{"v":0,"d":"€ 0.00"}},{"$f":"SUBTOTAL(109,VenditeAprile[Tariffe \nPayPal])","v":{"v":0,"d":"€ 0.00"}},{"$f":"SUBTOTAL(109,VenditeAprile[Tariffe \ncarta di credito])","v":{"v":0,"d":"€ 0.00"}},{"$f":"SUBTOTAL(109,VenditeAprile[Spese\nspedizione])","v":{"v":0,"d":"€ 0.00"}},{"$f":"SUBTOTAL(109,VenditeAprile[Tariffe spedizione])","v":{"v":0,"d":"€ 0.00"}},{"$f":"SUBTOTAL(109,VenditeAprile[Profitti/Perdite vendite])","v":{"v":0,"d":"€ 0.00"}},{"$f":"SUBTOTAL(109,VenditeAprile[Profitti/Perdite spedizioni])","v":{"v":0,"d":"€ 0.00"}},{"$f":"SUBTOTAL(109,VenditeAprile[Totale\nprofitti/perdite])","v":{"v":0,"d":"€ 0.00"}}]
["Tendenza profitti/perdite"]

{"sheet":"Maggio","index":4,"n_rows":9,"n_cols":14,"rows_kept":9,"merged":[[3,0,4,0],[6,0,7,0]]}
["MAGGIO"]
["Vendite online",null,"ID\nasta","Descrizione\narticolo","Prezzo di acquisto","Prezzo di vendita","Tariffe online","Tariffe \nPayPal","Tariffe \ncarta di credito","Spese\nspedizione","Tariffe spedizione","Profitti/Perdite vendite","Profitti/Perdite spedizioni","Totale\nprofitti/perdite"]
["Anno",{"$nulls":11},{"$f":"VenditeMaggio[Spese\nspedizione]-VenditeMaggio[Tariffe spedizione]","v":{"v":0,"d":"€ 0.00"}},{"$f":"VenditeMaggio[Profitti/Perdite vendite]+VenditeMaggio[Profitti/Perdite spedizioni]","v":{"v":0,"d":"€ 0.00"}}]
[{"$f":"AnnoVendite","v":2012},{"$nulls":11},{"$f":"VenditeMaggio[Spese\nspedizione]-VenditeMaggio[Tariffe spedizione]","v":{"v":0,"d":"€ 0.00"}},{"$f":"VenditeMaggio[Profitti/Perdite vendite]+VenditeMaggio[Profitti/Perdite spedizioni]","v":{"v":0,"d":"€ 0.00"}}]
[{"$nulls":12},{"$f":"VenditeMaggio[Spese\nspedizione]-VenditeMaggio[Tariffe spedizione]","v":{"v":0,"d":"€ 0.00"}},{"$f":"VenditeMaggio[Profitti/Perdite vendite]+VenditeMaggio[Profitti/Perdite spedizioni]","v":{"v":0,"d":"€ 0.00"}}]
["Totale profitti/perdite",{"$nulls":11},{"$f":"VenditeMaggio[Spese\nspedizione]-VenditeMaggio[Tariffe spedizione]","v":{"v":0,"d":"€ 0.00"}},{"$f":"VenditeMaggio[Profitti/Perdite vendite]+VenditeMaggio[Profitti/Perdite spedizioni]","v":{"v":0,"d":"€ 0.00"}}]
[{"$f":"VenditeMaggio[[#Totals],[Totale\nprofitti/perdite]]","v":{"v":0,"d":"€ 0.00"}},{"$nulls":11},{"$f":"VenditeMaggio[Spese\nspedizione]-VenditeMaggio[Tariffe spedizione]","v":{"v":0,"d":"€ 0.00"}},{"$f":"VenditeMaggio[Profitti/Perdite vendite]+VenditeMaggio[Profitti/Perdite spedizioni]","v":{"v":0,"d":"€ 0.00"}}]
[null,null," Totale",{"$f":"\"Items Sold: \"&SUBTOTAL(103,VenditeMaggio[Descrizione\narticolo])","v":"Items Sold: 0"},{"$f":"SUBTOTAL(109,VenditeMaggio[Prezzo di acquisto])","v":{"v":0,"d":"€ 0.00"}},{"$f":"SUBTOTAL(109,VenditeMaggio[Prezzo di vendita])","v":{"v":0,"d":"€ 0.00"}},{"$f":"SUBTOTAL(109,VenditeMaggio[Tariffe online])","v":{"v":0,"d":"€ 0.00"}},{"$f":"SUBTOTAL(109,VenditeMaggio[Tariffe \nPayPal])","v":{"v":0,"d":"€ 0.00"}},{"$f":"SUBTOTAL(109,VenditeMaggio[Tariffe \ncarta di credito])","v":{"v":0,"d":"€ 0.00"}},{"$f":"SUBTOTAL(109,VenditeMaggio[Spese\nspedizione])","v":{"v":0,"d":"€ 0.00"}},{"$f":"SUBTOTAL(109,VenditeMaggio[Tariffe spedizione])","v":{"v":0,"d":"€ 0.00"}},{"$f":"SUBTOTAL(109,VenditeMaggio[Profitti/Perdite vendite])","v":{"v":0,"d":"€ 0.00"}},{"$f":"SUBTOTAL(109,VenditeMaggio[Profitti/Perdite spedizioni])","v":{"v":0,"d":"€ 0.00"}},{"$f":"SUBTOTAL(109,VenditeMaggio[Totale\nprofitti/perdite])","v":{"v":0,"d":"€ 0.00"}}]
["Tendenza profitti/perdite"]

{"sheet":"Giugno","index":5,"n_rows":9,"n_cols":14,"rows_kept":9,"merged":[[3,0,4,0],[6,0,7,0]]}
["GIUGNO"]
["Vendite online",null,"ID\nasta","Descrizione\narticolo","Prezzo di acquisto","Prezzo di vendita","Tariffe online","Tariffe \nPayPal","Tariffe \ncarta di credito","Spese\nspedizione","Tariffe spedizione","Profitti/Perdite vendite","Profitti/Perdite spedizioni","Totale\nprofitti/perdite"]
["Anno",{"$nulls":11},{"$f":"VenditeGiugno[Spese\nspedizione]-VenditeGiugno[Tariffe spedizione]","v":{"v":0,"d":"$ 0.00"}},{"$f":"VenditeGiugno[Profitti/Perdite vendite]+VenditeGiugno[Profitti/Perdite spedizioni]","v":{"v":0,"d":"$ 0.00"}}]
[{"$f":"AnnoVendite","v":2012},{"$nulls":11},{"$f":"VenditeGiugno[Spese\nspedizione]-VenditeGiugno[Tariffe spedizione]","v":{"v":0,"d":"$ 0.00"}},{"$f":"VenditeGiugno[Profitti/Perdite vendite]+VenditeGiugno[Profitti/Perdite spedizioni]","v":{"v":0,"d":"$ 0.00"}}]
[{"$nulls":12},{"$f":"VenditeGiugno[Spese\nspedizione]-VenditeGiugno[Tariffe spedizione]","v":{"v":0,"d":"$ 0.00"}},{"$f":"VenditeGiugno[Profitti/Perdite vendite]+VenditeGiugno[Profitti/Perdite spedizioni]","v":{"v":0,"d":"$ 0.00"}}]
["Totale profitti/perdite",{"$nulls":11},{"$f":"VenditeGiugno[Spese\nspedizione]-VenditeGiugno[Tariffe spedizione]","v":{"v":0,"d":"$ 0.00"}},{"$f":"VenditeGiugno[Profitti/Perdite vendite]+VenditeGiugno[Profitti/Perdite spedizioni]","v":{"v":0,"d":"$ 0.00"}}]
[{"$f":"VenditeGiugno[[#Totals],[Totale\nprofitti/perdite]]","v":{"v":0,"d":"$0.00"}},{"$nulls":11},{"$f":"VenditeGiugno[Spese\nspedizione]-VenditeGiugno[Tariffe spedizione]","v":{"v":0,"d":"$ 0.00"}},{"$f":"VenditeGiugno[Profitti/Perdite vendite]+VenditeGiugno[Profitti/Perdite spedizioni]","v":{"v":0,"d":"$ 0.00"}}]
[null,null," Totale",{"$f":"\"Items Sold: \"&SUBTOTAL(103,VenditeGiugno[Descrizione\narticolo])","v":"Items Sold: 0"},{"$f":"SUBTOTAL(109,VenditeGiugno[Prezzo di acquisto])","v":{"v":0,"d":"$ 0.00"}},{"$f":"SUBTOTAL(109,VenditeGiugno[Prezzo di vendita])","v":{"v":0,"d":"$ 0.00"}},{"$f":"SUBTOTAL(109,VenditeGiugno[Tariffe online])","v":{"v":0,"d":"$ 0.00"}},{"$f":"SUBTOTAL(109,VenditeGiugno[Tariffe \nPayPal])","v":{"v":0,"d":"$ 0.00"}},{"$f":"SUBTOTAL(109,VenditeGiugno[Tariffe \ncarta di credito])","v":{"v":0,"d":"$ 0.00"}},{"$f":"SUBTOTAL(109,VenditeGiugno[Spese\nspedizione])","v":{"v":0,"d":"$ 0.00"}},{"$f":"SUBTOTAL(109,VenditeGiugno[Tariffe spedizione])","v":{"v":0,"d":"$ 0.00"}},{"$f":"SUBTOTAL(109,VenditeGiugno[Profitti/Perdite vendite])","v":{"v":0,"d":"$ 0.00"}},{"$f":"SUBTOTAL(109,VenditeGiugno[Profitti/Perdite spedizioni])","v":{"v":0,"d":"$ 0.00"}},{"$f":"SUBTOTAL(109,VenditeGiugno[Totale\nprofitti/perdite])","v":{"v":0,"d":"$ 0.00"}}]
["Tendenza profitti/perdite"]

{"sheet":"Luglio","index":6,"n_rows":9,"n_cols":14,"rows_kept":9,"merged":[[3,0,4,0],[6,0,7,0]]}
["LUGLIO"]
["Vendite online",null,"ID\nasta","Descrizione\narticolo","Prezzo di acquisto","Prezzo di vendita","Tariffe online","Tariffe \nPayPal","Tariffe \ncarta di credito","Spese\nspedizione","Tariffe spedizione","Profitti/Perdite vendite","Profitti/Perdite spedizioni","Totale\nprofitti/perdite"]
["Anno",{"$nulls":11},{"$f":"VenditeLuglio[Spese\nspedizione]-VenditeLuglio[Tariffe spedizione]","v":{"v":0,"d":"€ 0.00"}},{"$f":"VenditeLuglio[Profitti/Perdite vendite]+VenditeLuglio[Profitti/Perdite spedizioni]","v":{"v":0,"d":"€ 0.00"}}]
[{"$f":"AnnoVendite","v":2012},{"$nulls":11},{"$f":"VenditeLuglio[Spese\nspedizione]-VenditeLuglio[Tariffe spedizione]","v":{"v":0,"d":"€ 0.00"}},{"$f":"VenditeLuglio[Profitti/Perdite vendite]+VenditeLuglio[Profitti/Perdite spedizioni]","v":{"v":0,"d":"€ 0.00"}}]
[{"$nulls":12},{"$f":"VenditeLuglio[Spese\nspedizione]-VenditeLuglio[Tariffe spedizione]","v":{"v":0,"d":"€ 0.00"}},{"$f":"VenditeLuglio[Profitti/Perdite vendite]+VenditeLuglio[Profitti/Perdite spedizioni]","v":{"v":0,"d":"€ 0.00"}}]
["Totale profitti/perdite",{"$nulls":11},{"$f":"VenditeLuglio[Spese\nspedizione]-VenditeLuglio[Tariffe spedizione]","v":{"v":0,"d":"€ 0.00"}},{"$f":"VenditeLuglio[Profitti/Perdite vendite]+VenditeLuglio[Profitti/Perdite spedizioni]","v":{"v":0,"d":"€ 0.00"}}]
[{"$f":"VenditeLuglio[[#Totals],[Totale\nprofitti/perdite]]","v":{"v":0,"d":"€ 0.00"}},{"$nulls":11},{"$f":"VenditeLuglio[Spese\nspedizione]-VenditeLuglio[Tariffe spedizione]","v":{"v":0,"d":"€ 0.00"}},{"$f":"VenditeLuglio[Profitti/Perdite vendite]+VenditeLuglio[Profitti/Perdite spedizioni]","v":{"v":0,"d":"€ 0.00"}}]
[null,null," Totale",{"$f":"\"Items Sold: \"&SUBTOTAL(103,VenditeLuglio[Descrizione\narticolo])","v":"Items Sold: 0"},{"$f":"SUBTOTAL(109,VenditeLuglio[Prezzo di acquisto])","v":{"v":0,"d":"€ 0.00"}},{"$f":"SUBTOTAL(109,VenditeLuglio[Prezzo di vendita])","v":{"v":0,"d":"€ 0.00"}},{"$f":"SUBTOTAL(109,VenditeLuglio[Tariffe online])","v":{"v":0,"d":"€ 0.00"}},{"$f":"SUBTOTAL(109,VenditeLuglio[Tariffe \nPayPal])","v":{"v":0,"d":"€ 0.00"}},{"$f":"SUBTOTAL(109,VenditeLuglio[Tariffe \ncarta di credito])","v":{"v":0,"d":"€ 0.00"}},{"$f":"SUBTOTAL(109,VenditeLuglio[Spese\nspedizione])","v":{"v":0,"d":"€ 0.00"}},{"$f":"SUBTOTAL(109,VenditeLuglio[Tariffe spedizione])","v":{"v":0,"d":"€ 0.00"}},{"$f":"SUBTOTAL(109,VenditeLuglio[Profitti/Perdite vendite])","v":{"v":0,"d":"€ 0.00"}},{"$f":"SUBTOTAL(109,VenditeLuglio[Profitti/Perdite spedizioni])","v":{"v":0,"d":"€ 0.00"}},{"$f":"SUBTOTAL(109,VenditeLuglio[Totale\nprofitti/perdite])","v":{"v":0,"d":"€ 0.00"}}]
["Tendenza profitti/perdite"]

{"sheet":"Agosto","index":7,"n_rows":9,"n_cols":14,"rows_kept":9,"merged":[[3,0,4,0],[6,0,7,0]]}
["AGOSTO"]
["Vendite online",null,"ID\nasta","Descrizione\narticolo","Prezzo di acquisto","Prezzo di vendita","Tariffe online","Tariffe \nPayPal","Tariffe \ncarta di credito","Spese\nspedizione","Tariffe spedizione","Profitti/Perdite vendite","Profitti/Perdite spedizioni","Totale\nprofitti/perdite"]
["Anno",{"$nulls":11},{"$f":"VenditeAgosto[Spese\nspedizione]-VenditeAgosto[Tariffe spedizione]","v":{"v":0,"d":"€ 0.00"}},{"$f":"VenditeAgosto[Profitti/Perdite vendite]+VenditeAgosto[Profitti/Perdite spedizioni]","v":{"v":0,"d":"€ 0.00"}}]
[{"$f":"AnnoVendite","v":2012},{"$nulls":11},{"$f":"VenditeAgosto[Spese\nspedizione]-VenditeAgosto[Tariffe spedizione]","v":{"v":0,"d":"€ 0.00"}},{"$f":"VenditeAgosto[Profitti/Perdite vendite]+VenditeAgosto[Profitti/Perdite spedizioni]","v":{"v":0,"d":"€ 0.00"}}]
[{"$nulls":12},{"$f":"VenditeAgosto[Spese\nspedizione]-VenditeAgosto[Tariffe spedizione]","v":{"v":0,"d":"€ 0.00"}},{"$f":"VenditeAgosto[Profitti/Perdite vendite]+VenditeAgosto[Profitti/Perdite spedizioni]","v":{"v":0,"d":"€ 0.00"}}]
["Totale profitti/perdite",{"$nulls":11},{"$f":"VenditeAgosto[Spese\nspedizione]-VenditeAgosto[Tariffe spedizione]","v":{"v":0,"d":"€ 0.00"}},{"$f":"VenditeAgosto[Profitti/Perdite vendite]+VenditeAgosto[Profitti/Perdite spedizioni]","v":{"v":0,"d":"€ 0.00"}}]
[{"$f":"VenditeAgosto[[#Totals],[Totale\nprofitti/perdite]]","v":{"v":0,"d":"€ 0.00"}},{"$nulls":11},{"$f":"VenditeAgosto[Spese\nspedizione]-VenditeAgosto[Tariffe spedizione]","v":{"v":0,"d":"€ 0.00"}},{"$f":"VenditeAgosto[Profitti/Perdite vendite]+VenditeAgosto[Profitti/Perdite spedizioni]","v":{"v":0,"d":"€ 0.00"}}]
[null,null," Totale",{"$f":"\"Items Sold: \"&SUBTOTAL(103,VenditeAgosto[Descrizione\narticolo])","v":"Items Sold: 0"},{"$f":"SUBTOTAL(109,VenditeAgosto[Prezzo di acquisto])","v":{"v":0,"d":"€ 0.00"}},{"$f":"SUBTOTAL(109,VenditeAgosto[Prezzo di vendita])","v":{"v":0,"d":"€ 0.00"}},{"$f":"SUBTOTAL(109,VenditeAgosto[Tariffe online])","v":{"v":0,"d":"€ 0.00"}},{"$f":"SUBTOTAL(109,VenditeAgosto[Tariffe \nPayPal])","v":{"v":0,"d":"€ 0.00"}},{"$f":"SUBTOTAL(109,VenditeAgosto[Tariffe \ncarta di credito])","v":{"v":0,"d":"€ 0.00"}},{"$f":"SUBTOTAL(109,VenditeAgosto[Spese\nspedizione])","v":{"v":0,"d":"€ 0.00"}},{"$f":"SUBTOTAL(109,VenditeAgosto[Tariffe spedizione])","v":{"v":0,"d":"€ 0.00"}},{"$f":"SUBTOTAL(109,VenditeAgosto[Profitti/Perdite vendite])","v":{"v":0,"d":"€ 0.00"}},{"$f":"SUBTOTAL(109,VenditeAgosto[Profitti/Perdite spedizioni])","v":{"v":0,"d":"€ 0.00"}},{"$f":"SUBTOTAL(109,VenditeAgosto[Totale\nprofitti/perdite])","v":{"v":0,"d":"€ 0.00"}}]
["Tendenza profitti/perdite"]

{"sheet":"Settembre","index":8,"n_rows":9,"n_cols":14,"rows_kept":9,"merged":[[3,0,4,0],[6,0,7,0]]}
["SETTEMBRE"]
["Vendite online",null,"ID\nasta","Descrizione\narticolo","Prezzo di acquisto","Prezzo di vendita","Tariffe online","Tariffe \nPayPal","Tariffe \ncarta di credito","Spese\nspedizione","Tariffe spedizione","Profitti/Perdite vendite","Profitti/Perdite spedizioni","Totale\nprofitti/perdite"]
["Anno",{"$nulls":11},{"$f":"VenditeSettembre[Spese\nspedizione]-VenditeSettembre[Tariffe spedizione]","v":{"v":0,"d":"€ 0.00"}},{"$f":"VenditeSettembre[Profitti/Perdite vendite]+VenditeSettembre[Profitti/Perdite spedizioni]","v":{"v":0,"d":"€ 0.00"}}]
[{"$f":"AnnoVendite","v":2012},{"$nulls":11},{"$f":"VenditeSettembre[Spese\nspedizione]-VenditeSettembre[Tariffe spedizione]","v":{"v":0,"d":"€ 0.00"}},{"$f":"VenditeSettembre[Profitti/Perdite vendite]+VenditeSettembre[Profitti/Perdite spedizioni]","v":{"v":0,"d":"€ 0.00"}}]
[{"$nulls":12},{"$f":"VenditeSettembre[Spese\nspedizione]-VenditeSettembre[Tariffe spedizione]","v":{"v":0,"d":"€ 0.00"}},{"$f":"VenditeSettembre[Profitti/Perdite vendite]+VenditeSettembre[Profitti/Perdite spedizioni]","v":{"v":0,"d":"€ 0.00"}}]
["Totale profitti/perdite",{"$nulls":11},{"$f":"VenditeSettembre[Spese\nspedizione]-VenditeSettembre[Tariffe spedizione]","v":{"v":0,"d":"€ 0.00"}},{"$f":"VenditeSettembre[Profitti/Perdite vendite]+VenditeSettembre[Profitti/Perdite spedizioni]","v":{"v":0,"d":"€ 0.00"}}]
[{"$f":"VenditeSettembre[[#Totals],[Totale\nprofitti/perdite]]","v":{"v":0,"d":"€ 0.00"}},{"$nulls":11},{"$f":"VenditeSettembre[Spese\nspedizione]-VenditeSettembre[Tariffe spedizione]","v":{"v":0,"d":"€ 0.00"}},{"$f":"VenditeSettembre[Profitti/Perdite vendite]+VenditeSettembre[Profitti/Perdite spedizioni]","v":{"v":0,"d":"€ 0.00"}}]
[null,null," Totale",{"$f":"\"Items Sold: \"&SUBTOTAL(103,VenditeSettembre[Descrizione\narticolo])","v":"Items Sold: 0"},{"$f":"SUBTOTAL(109,VenditeSettembre[Prezzo di acquisto])","v":{"v":0,"d":"€ 0.00"}},{"$f":"SUBTOTAL(109,VenditeSettembre[Prezzo di vendita])","v":{"v":0,"d":"€ 0.00"}},{"$f":"SUBTOTAL(109,VenditeSettembre[Tariffe online])","v":{"v":0,"d":"€ 0.00"}},{"$f":"SUBTOTAL(109,VenditeSettembre[Tariffe \nPayPal])","v":{"v":0,"d":"€ 0.00"}},{"$f":"SUBTOTAL(109,VenditeSettembre[Tariffe \ncarta di credito])","v":{"v":0,"d":"€ 0.00"}},{"$f":"SUBTOTAL(109,VenditeSettembre[Spese\nspedizione])","v":{"v":0,"d":"€ 0.00"}},{"$f":"SUBTOTAL(109,VenditeSettembre[Tariffe spedizione])","v":{"v":0,"d":"€ 0.00"}},{"$f":"SUBTOTAL(109,VenditeSettembre[Profitti/Perdite vendite])","v":{"v":0,"d":"€ 0.00"}},{"$f":"SUBTOTAL(109,VenditeSettembre[Profitti/Perdite spedizioni])","v":{"v":0,"d":"€ 0.00"}},{"$f":"SUBTOTAL(109,VenditeSettembre[Totale\nprofitti/perdite])","v":{"v":0,"d":"€ 0.00"}}]
["Tendenza profitti/perdite"]

{"sheet":"Ottobre","index":9,"n_rows":9,"n_cols":14,"rows_kept":9,"merged":[[3,0,4,0],[6,0,7,0]]}
["OTTOBRE"]
["Vendite online",null,"ID\nasta","Descrizione\narticolo","Prezzo di acquisto","Prezzo di vendita","Tariffe online","Tariffe \nPayPal","Tariffe \ncarta di credito","Spese\nspedizione","Tariffe spedizione","Profitti/Perdite vendite","Profitti/Perdite spedizioni","Totale\nprofitti/perdite"]
["Anno",{"$nulls":11},{"$f":"VenditeOttobre[Spese\nspedizione]-VenditeOttobre[Tariffe spedizione]","v":{"v":0,"d":"€ 0.00"}},{"$f":"VenditeOttobre[Profitti/Perdite vendite]+VenditeOttobre[Profitti/Perdite spedizioni]","v":{"v":0,"d":"€ 0.00"}}]
[{"$f":"AnnoVendite","v":2012},{"$nulls":11},{"$f":"VenditeOttobre[Spese\nspedizione]-VenditeOttobre[Tariffe spedizione]","v":{"v":0,"d":"€ 0.00"}},{"$f":"VenditeOttobre[Profitti/Perdite vendite]+VenditeOttobre[Profitti/Perdite spedizioni]","v":{"v":0,"d":"€ 0.00"}}]
[{"$nulls":12},{"$f":"VenditeOttobre[Spese\nspedizione]-VenditeOttobre[Tariffe spedizione]","v":{"v":0,"d":"€ 0.00"}},{"$f":"VenditeOttobre[Profitti/Perdite vendite]+VenditeOttobre[Profitti/Perdite spedizioni]","v":{"v":0,"d":"€ 0.00"}}]
["Totale profitti/perdite",{"$nulls":11},{"$f":"VenditeOttobre[Spese\nspedizione]-VenditeOttobre[Tariffe spedizione]","v":{"v":0,"d":"€ 0.00"}},{"$f":"VenditeOttobre[Profitti/Perdite vendite]+VenditeOttobre[Profitti/Perdite spedizioni]","v":{"v":0,"d":"€ 0.00"}}]
[{"$f":"VenditeOttobre[[#Totals],[Totale\nprofitti/perdite]]","v":{"v":0,"d":"€ 0.00"}},{"$nulls":11},{"$f":"VenditeOttobre[Spese\nspedizione]-VenditeOttobre[Tariffe spedizione]","v":{"v":0,"d":"€ 0.00"}},{"$f":"VenditeOttobre[Profitti/Perdite vendite]+VenditeOttobre[Profitti/Perdite spedizioni]","v":{"v":0,"d":"€ 0.00"}}]
[null,null," Totale",{"$f":"\"Items Sold: \"&SUBTOTAL(103,VenditeOttobre[Descrizione\narticolo])","v":"Items Sold: 0"},{"$f":"SUBTOTAL(109,VenditeOttobre[Prezzo di acquisto])","v":{"v":0,"d":"€ 0.00"}},{"$f":"SUBTOTAL(109,VenditeOttobre[Prezzo di vendita])","v":{"v":0,"d":"€ 0.00"}},{"$f":"SUBTOTAL(109,VenditeOttobre[Tariffe online])","v":{"v":0,"d":"€ 0.00"}},{"$f":"SUBTOTAL(109,VenditeOttobre[Tariffe \nPayPal])","v":{"v":0,"d":"€ 0.00"}},{"$f":"SUBTOTAL(109,VenditeOttobre[Tariffe \ncarta di credito])","v":{"v":0,"d":"€ 0.00"}},{"$f":"SUBTOTAL(109,VenditeOttobre[Spese\nspedizione])","v":{"v":0,"d":"€ 0.00"}},{"$f":"SUBTOTAL(109,VenditeOttobre[Tariffe spedizione])","v":{"v":0,"d":"€ 0.00"}},{"$f":"SUBTOTAL(109,VenditeOttobre[Profitti/Perdite vendite])","v":{"v":0,"d":"€ 0.00"}},{"$f":"SUBTOTAL(109,VenditeOttobre[Profitti/Perdite spedizioni])","v":{"v":0,"d":"€ 0.00"}},{"$f":"SUBTOTAL(109,VenditeOttobre[Totale\nprofitti/perdite])","v":{"v":0,"d":"€ 0.00"}}]
["Tendenza profitti/perdite"]

{"sheet":"Novembre","index":10,"n_rows":9,"n_cols":14,"rows_kept":9,"merged":[[3,0,4,0],[6,0,7,0]]}
["NOVEMBRE"]
["Vendite online",null,"ID\nasta","Descrizione\narticolo","Prezzo di acquisto","Prezzo di vendita","Tariffe online","Tariffe \nPayPal","Tariffe \ncarta di credito","Spese\nspedizione","Tariffe spedizione","Profitti/Perdite vendite","Profitti/Perdite spedizioni","Totale\nprofitti/perdite"]
["Anno",{"$nulls":11},{"$f":"VenditeNovembre[Spese\nspedizione]-VenditeNovembre[Tariffe spedizione]","v":{"v":0,"d":"€ 0.00"}},{"$f":"VenditeNovembre[Profitti/Perdite vendite]+VenditeNovembre[Profitti/Perdite spedizioni]","v":{"v":0,"d":"€ 0.00"}}]
[{"$f":"AnnoVendite","v":2012},{"$nulls":11},{"$f":"VenditeNovembre[Spese\nspedizione]-VenditeNovembre[Tariffe spedizione]","v":{"v":0,"d":"€ 0.00"}},{"$f":"VenditeNovembre[Profitti/Perdite vendite]+VenditeNovembre[Profitti/Perdite spedizioni]","v":{"v":0,"d":"€ 0.00"}}]
[{"$nulls":12},{"$f":"VenditeNovembre[Spese\nspedizione]-VenditeNovembre[Tariffe spedizione]","v":{"v":0,"d":"€ 0.00"}},{"$f":"VenditeNovembre[Profitti/Perdite vendite]+VenditeNovembre[Profitti/Perdite spedizioni]","v":{"v":0,"d":"€ 0.00"}}]
["Totale profitti/perdite",{"$nulls":11},{"$f":"VenditeNovembre[Spese\nspedizione]-VenditeNovembre[Tariffe spedizione]","v":{"v":0,"d":"€ 0.00"}},{"$f":"VenditeNovembre[Profitti/Perdite vendite]+VenditeNovembre[Profitti/Perdite spedizioni]","v":{"v":0,"d":"€ 0.00"}}]
[{"$f":"VenditeNovembre[[#Totals],[Totale\nprofitti/perdite]]","v":{"v":0,"d":"€ 0.00"}},{"$nulls":11},{"$f":"VenditeNovembre[Spese\nspedizione]-VenditeNovembre[Tariffe spedizione]","v":{"v":0,"d":"€ 0.00"}},{"$f":"VenditeNovembre[Profitti/Perdite vendite]+VenditeNovembre[Profitti/Perdite spedizioni]","v":{"v":0,"d":"€ 0.00"}}]
[null,null," Totale",{"$f":"\"Items Sold: \"&SUBTOTAL(103,VenditeNovembre[Descrizione\narticolo])","v":"Items Sold: 0"},{"$f":"SUBTOTAL(109,VenditeNovembre[Prezzo di acquisto])","v":{"v":0,"d":"€ 0.00"}},{"$f":"SUBTOTAL(109,VenditeNovembre[Prezzo di vendita])","v":{"v":0,"d":"€ 0.00"}},{"$f":"SUBTOTAL(109,VenditeNovembre[Tariffe online])","v":{"v":0,"d":"€ 0.00"}},{"$f":"SUBTOTAL(109,VenditeNovembre[Tariffe \nPayPal])","v":{"v":0,"d":"€ 0.00"}},{"$f":"SUBTOTAL(109,VenditeNovembre[Tariffe \ncarta di credito])","v":{"v":0,"d":"€ 0.00"}},{"$f":"SUBTOTAL(109,VenditeNovembre[Spese\nspedizione])","v":{"v":0,"d":"€ 0.00"}},{"$f":"SUBTOTAL(109,VenditeNovembre[Tariffe spedizione])","v":{"v":0,"d":"€ 0.00"}},{"$f":"SUBTOTAL(109,VenditeNovembre[Profitti/Perdite vendite])","v":{"v":0,"d":"€ 0.00"}},{"$f":"SUBTOTAL(109,VenditeNovembre[Profitti/Perdite spedizioni])","v":{"v":0,"d":"€ 0.00"}},{"$f":"SUBTOTAL(109,VenditeNovembre[Totale\nprofitti/perdite])","v":{"v":0,"d":"€ 0.00"}}]
["Tendenza profitti/perdite"]

{"sheet":"Dicembre","index":11,"n_rows":9,"n_cols":14,"rows_kept":9,"merged":[[3,0,4,0],[6,0,7,0]]}
["DICEMBRE"]
["Vendite online",null,"ID\nasta","Descrizione\narticolo","Prezzo di acquisto","Prezzo di vendita","Tariffe online","Tariffe \nPayPal","Tariffe \ncarta di credito","Spese\nspedizione","Tariffe spedizione","Profitti/Perdite vendite","Profitti/Perdite spedizioni","Totale\nprofitti/perdite"]
["Anno",{"$nulls":11},{"$f":"VenditeDicembre[Spese\nspedizione]-VenditeDicembre[Tariffe spedizione]","v":{"v":0,"d":"€ 0.00"}},{"$f":"VenditeDicembre[Profitti/Perdite vendite]+VenditeDicembre[Profitti/Perdite spedizioni]","v":{"v":0,"d":"€ 0.00"}}]
[{"$f":"AnnoVendite","v":2012},{"$nulls":11},{"$f":"VenditeDicembre[Spese\nspedizione]-VenditeDicembre[Tariffe spedizione]","v":{"v":0,"d":"€ 0.00"}},{"$f":"VenditeDicembre[Profitti/Perdite vendite]+VenditeDicembre[Profitti/Perdite spedizioni]","v":{"v":0,"d":"€ 0.00"}}]
[{"$nulls":12},{"$f":"VenditeDicembre[Spese\nspedizione]-VenditeDicembre[Tariffe spedizione]","v":{"v":0,"d":"€ 0.00"}},{"$f":"VenditeDicembre[Profitti/Perdite vendite]+VenditeDicembre[Profitti/Perdite spedizioni]","v":{"v":0,"d":"€ 0.00"}}]
["Totale profitti/perdite",{"$nulls":11},{"$f":"VenditeDicembre[Spese\nspedizione]-VenditeDicembre[Tariffe spedizione]","v":{"v":0,"d":"€ 0.00"}},{"$f":"VenditeDicembre[Profitti/Perdite vendite]+VenditeDicembre[Profitti/Perdite spedizioni]","v":{"v":0,"d":"€ 0.00"}}]
[{"$f":"VenditeDicembre[[#Totals],[Totale\nprofitti/perdite]]","v":{"v":0,"d":"€ 0.00"}},{"$nulls":11},{"$f":"VenditeDicembre[Spese\nspedizione]-VenditeDicembre[Tariffe spedizione]","v":{"v":0,"d":"€ 0.00"}},{"$f":"VenditeDicembre[Profitti/Perdite vendite]+VenditeDicembre[Profitti/Perdite spedizioni]","v":{"v":0,"d":"€ 0.00"}}]
[null,null," Totale",{"$f":"\"Items Sold: \"&SUBTOTAL(103,VenditeDicembre[Descrizione\narticolo])","v":"Items Sold: 0"},{"$f":"SUBTOTAL(109,VenditeDicembre[Prezzo di acquisto])","v":{"v":0,"d":"€ 0.00"}},{"$f":"SUBTOTAL(109,VenditeDicembre[Prezzo di vendita])","v":{"v":0,"d":"€ 0.00"}},{"$f":"SUBTOTAL(109,VenditeDicembre[Tariffe online])","v":{"v":0,"d":"€ 0.00"}},{"$f":"SUBTOTAL(109,VenditeDicembre[Tariffe \nPayPal])","v":{"v":0,"d":"€ 0.00"}},{"$f":"SUBTOTAL(109,VenditeDicembre[Tariffe \ncarta di credito])","v":{"v":0,"d":"€ 0.00"}},{"$f":"SUBTOTAL(109,VenditeDicembre[Spese\nspedizione])","v":{"v":0,"d":"€ 0.00"}},{"$f":"SUBTOTAL(109,VenditeDicembre[Tariffe spedizione])","v":{"v":0,"d":"€ 0.00"}},{"$f":"SUBTOTAL(109,VenditeDicembre[Profitti/Perdite vendite])","v":{"v":0,"d":"€ 0.00"}},{"$f":"SUBTOTAL(109,VenditeDicembre[Profitti/Perdite spedizioni])","v":{"v":0,"d":"€ 0.00"}},{"$f":"SUBTOTAL(109,VenditeDicembre[Totale\nprofitti/perdite])","v":{"v":0,"d":"€ 0.00"}}]
["Tendenza profitti/perdite"]

{"sheet":"Riepilogo da inizio anno","index":12,"n_rows":16,"n_cols":11,"rows_kept":16,"merged":[[3,0,4,0],[6,0,7,0]]}
["Da inizio anno"]
["Riepilogo",null,"Profitti/Perdite",{"$nulls":4},"Profitti/Perdite da inizio anno"]
["Anno",{"$nulls":6},"Mese","Profitti/Perdite vendite","Profitti/Perdite spedizioni","Totale\nprofitti/perdite"]
[{"$f":"AnnoVendite","v":2012},{"$nulls":6},"Gennaio",{"$f":"VenditeGennaio[[#Totals],[Profitti/Perdite vendite]]","v":{"v":79.5,"d":"€ 79.50"}},{"$f":"VenditeGennaio[[#Totals],[Profitti/Perdite spedizioni]]","v":{"v":9.5,"d":"€ 9.50"}},{"$f":"IF(AND(RiepilogoDaInizioAnno[[#This Row],[Profitti/Perdite vendite]]<>\"\",RiepilogoDaInizioAnno[[#This Row],[Profitti/Perdite spedizioni]]<>\"\"),RiepilogoDaInizioAnno[[#This Row],[Profitti/Perdite vendite]]+RiepilogoDaInizioAnno[[#This Row],[Profitti/Perdite spedizioni]],\"\")","v":{"v":89,"d":"€ 89.00"}}]
[{"$nulls":7},"Febbraio",{"$f":"VenditeFebbraio[[#Totals],[Profitti/Perdite vendite]]","v":{"v":212.3,"d":"€ 212.30"}},{"$f":"VenditeFebbraio[[#Totals],[Profitti/Perdite spedizioni]]","v":{"v":12.3,"d":"€ 12.30"}},{"$f":"IF(AND(RiepilogoDaInizioAnno[[#This Row],[Profitti/Perdite vendite]]<>\"\",RiepilogoDaInizioAnno[[#This Row],[Profitti/Perdite spedizioni]]<>\"\"),RiepilogoDaInizioAnno[[#This Row],[Profitti/Perdite vendite]]+RiepilogoDaInizioAnno[[#This Row],[Profitti/Perdite spedizioni]],\"\")","v":{"v":224.60000000000002,"d":"€ 224.60"}}]
["Tendenza vendite mensili:",{"$nulls":6},"Marzo",{"$f":"VenditeMarzo[[#Totals],[Profitti/Perdite vendite]]","v":{"v":0,"d":"€ 0.00"}},{"$f":"VenditeMarzo[[#Totals],[Profitti/Perdite spedizioni]]","v":{"v":0,"d":"€ 0.00"}},{"$f":"IF(AND(RiepilogoDaInizioAnno[[#This Row],[Profitti/Perdite vendite]]<>\"\",RiepilogoDaInizioAnno[[#This Row],[Profitti/Perdite spedizioni]]<>\"\"),RiepilogoDaInizioAnno[[#This Row],[Profitti/Perdite vendite]]+RiepilogoDaInizioAnno[[#This Row],[Profitti/Perdite spedizioni]],\"\")","v":{"v":0,"d":"€ 0.00"}}]
[{"$nulls":7},"Aprile",{"$f":"VenditeAprile[[#Totals],[Profitti/Perdite vendite]]","v":{"v":0,"d":"€ 0.00"}},{"$f":"VenditeAprile[[#Totals],[Profitti/Perdite spedizioni]]","v":{"v":0,"d":"€ 0.00"}},{"$f":"IF(AND(RiepilogoDaInizioAnno[[#This Row],[Profitti/Perdite vendite]]<>\"\",RiepilogoDaInizioAnno[[#This Row],[Profitti/Perdite spedizioni]]<>\"\"),RiepilogoDaInizioAnno[[#This Row],[Profitti/Perdite vendite]]+RiepilogoDaInizioAnno[[#This Row],[Profitti/Perdite spedizioni]],\"\")","v":{"v":0,"d":"€ 0.00"}}]
[{"$nulls":7},"Maggio",{"$f":"VenditeMaggio[[#Totals],[Profitti/Perdite vendite]]","v":{"v":0,"d":"€ 0.00"}},{"$f":"VenditeMaggio[[#Totals],[Profitti/Perdite spedizioni]]","v":{"v":0,"d":"€ 0.00"}},{"$f":"IF(AND(RiepilogoDaInizioAnno[[#This Row],[Profitti/Perdite vendite]]<>\"\",RiepilogoDaInizioAnno[[#This Row],[Profitti/Perdite spedizioni]]<>\"\"),RiepilogoDaInizioAnno[[#This Row],[Profitti/Perdite vendite]]+RiepilogoDaInizioAnno[[#This Row],[Profitti/Perdite spedizioni]],\"\")","v":{"v":0,"d":"€ 0.00"}}]
[{"$nulls":7},"Giugno",{"$f":"VenditeGiugno[[#Totals],[Profitti/Perdite vendite]]","v":{"v":0,"d":"€ 0.00"}},{"$f":"VenditeGiugno[[#Totals],[Profitti/Perdite spedizioni]]","v":{"v":0,"d":"€ 0.00"}},{"$f":"IF(AND(RiepilogoDaInizioAnno[[#This Row],[Profitti/Perdite vendite]]<>\"\",RiepilogoDaInizioAnno[[#This Row],[Profitti/Perdite spedizioni]]<>\"\"),RiepilogoDaInizioAnno[[#This Row],[Profitti/Perdite vendite]]+RiepilogoDaInizioAnno[[#This Row],[Profitti/Perdite spedizioni]],\"\")","v":{"v":0,"d":"€ 0.00"}}]
[{"$nulls":7},"Luglio",{"$f":"VenditeLuglio[[#Totals],[Profitti/Perdite vendite]]","v":{"v":0,"d":"€ 0.00"}},{"$f":"VenditeLuglio[[#Totals],[Profitti/Perdite spedizioni]]","v":{"v":0,"d":"€ 0.00"}},{"$f":"IF(AND(RiepilogoDaInizioAnno[[#This Row],[Profitti/Perdite vendite]]<>\"\",RiepilogoDaInizioAnno[[#This Row],[Profitti/Perdite spedizioni]]<>\"\"),RiepilogoDaInizioAnno[[#This Row],[Profitti/Perdite vendite]]+RiepilogoDaInizioAnno[[#This Row],[Profitti/Perdite spedizioni]],\"\")","v":{"v":0,"d":"€ 0.00"}}]
[{"$nulls":7},"Agosto",{"$f":"VenditeAgosto[[#Totals],[Profitti/Perdite vendite]]","v":{"v":0,"d":"€ 0.00"}},{"$f":"VenditeAgosto[[#Totals],[Profitti/Perdite spedizioni]]","v":{"v":0,"d":"€ 0.00"}},{"$f":"IF(AND(RiepilogoDaInizioAnno[[#This Row],[Profitti/Perdite vendite]]<>\"\",RiepilogoDaInizioAnno[[#This Row],[Profitti/Perdite spedizioni]]<>\"\"),RiepilogoDaInizioAnno[[#This Row],[Profitti/Perdite vendite]]+RiepilogoDaInizioAnno[[#This Row],[Profitti/Perdite spedizioni]],\"\")","v":{"v":0,"d":"€ 0.00"}}]
[{"$nulls":7},"Settembre",{"$f":"VenditeSettembre[[#Totals],[Profitti/Perdite vendite]]","v":{"v":0,"d":"€ 0.00"}},{"$f":"VenditeSettembre[[#Totals],[Profitti/Perdite spedizioni]]","v":{"v":0,"d":"€ 0.00"}},{"$f":"IF(AND(RiepilogoDaInizioAnno[[#This Row],[Profitti/Perdite vendite]]<>\"\",RiepilogoDaInizioAnno[[#This Row],[Profitti/Perdite spedizioni]]<>\"\"),RiepilogoDaInizioAnno[[#This Row],[Profitti/Perdite vendite]]+RiepilogoDaInizioAnno[[#This Row],[Profitti/Perdite spedizioni]],\"\")","v":{"v":0,"d":"€ 0.00"}}]
[{"$nulls":7},"Ottobre",{"$f":"VenditeOttobre[[#Totals],[Profitti/Perdite vendite]]","v":{"v":0,"d":"€ 0.00"}},{"$f":"VenditeOttobre[[#Totals],[Profitti/Perdite spedizioni]]","v":{"v":0,"d":"€ 0.00"}},{"$f":"IF(AND(RiepilogoDaInizioAnno[[#This Row],[Profitti/Perdite vendite]]<>\"\",RiepilogoDaInizioAnno[[#This Row],[Profitti/Perdite spedizioni]]<>\"\"),RiepilogoDaInizioAnno[[#This Row],[Profitti/Perdite vendite]]+RiepilogoDaInizioAnno[[#This Row],[Profitti/Perdite spedizioni]],\"\")","v":{"v":0,"d":"€ 0.00"}}]
[{"$nulls":7},"Novembre",{"$f":"VenditeNovembre[[#Totals],[Profitti/Perdite vendite]]","v":{"v":0,"d":"€ 0.00"}},{"$f":"VenditeNovembre[[#Totals],[Profitti/Perdite spedizioni]]","v":{"v":0,"d":"€ 0.00"}},{"$f":"IF(AND(RiepilogoDaInizioAnno[[#This Row],[Profitti/Perdite vendite]]<>\"\",RiepilogoDaInizioAnno[[#This Row],[Profitti/Perdite spedizioni]]<>\"\"),RiepilogoDaInizioAnno[[#This Row],[Profitti/Perdite vendite]]+RiepilogoDaInizioAnno[[#This Row],[Profitti/Perdite spedizioni]],\"\")","v":{"v":0,"d":"€ 0.00"}}]
[{"$nulls":7},"Dicembre",{"$f":"VenditeDicembre[[#Totals],[Profitti/Perdite vendite]]","v":{"v":0,"d":"€ 0.00"}},{"$f":"VenditeDicembre[[#Totals],[Profitti/Perdite spedizioni]]","v":{"v":0,"d":"€ 0.00"}},{"$f":"IF(AND(RiepilogoDaInizioAnno[[#This Row],[Profitti/Perdite vendite]]<>\"\",RiepilogoDaInizioAnno[[#This Row],[Profitti/Perdite spedizioni]]<>\"\"),RiepilogoDaInizioAnno[[#This Row],[Profitti/Perdite vendite]]+RiepilogoDaInizioAnno[[#This Row],[Profitti/Perdite spedizioni]],\"\")","v":{"v":0,"d":"€ 0.00"}}]
[{"$nulls":7},"Totale",{"$f":"SUBTOTAL(109,RiepilogoDaInizioAnno[Profitti/Perdite vendite])","v":{"v":291.8,"d":"€ 291.80"}},{"$f":"SUBTOTAL(109,RiepilogoDaInizioAnno[Profitti/Perdite spedizioni])","v":{"v":21.8,"d":"€ 21.80"}},{"$f":"SUBTOTAL(109,RiepilogoDaInizioAnno[Totale\nprofitti/perdite])","v":{"v":313.6,"d":"€ 313.60"}}]